fUSD/lending_fUSD_20241207
["ID","MTS","AMOUNT","RATE_DAILY","PERIOD"]
[344516472,1733534643112,-2728.89,9.315e-05,2]
[344516473,1733534643151,-500.0,9.315e-05,2]
[344516474,1733534643187,-703.19,9.315e-05,2]
[344516475,1733534643223,-2684.93,9.315e-05,2]
[344516476,1733534643261,-500.0,9.315e-05,2]
[344516477,1733534643298,-500.0,9.315e-05,2]
[344516478,1733534643336,-500.0,9.315e-05,2]
[344516479,1733534643376,-1954.72,9.315e-05,2]
[344516480,1733534643414,-500.0,9.315e-05,2]
[344516481,1733534643450,-539.9,9.315e-05,2]
[344516482,1733534643488,-1653.8,9.315e-05,2]
[344516483,1733534643524,-1722.05,9.315e-05,2]
[344516484,1733534643560,-500.0,9.315e-05,2]
[344516485,1733534643594,-500.0,9.315e-05,2]
[344516486,1733534643633,-876.53,9.315e-05,2]
[344516487,1733534643669,-500.0,9.315e-05,2]
[344516488,1733534643705,-1772.88,9.315e-05,2]
[344516489,1733534643741,-4449.13,9.315e-05,2]
[344516490,1733534643776,-565.91,9.315e-05,2]
[344516491,1733534643810,-1320.54,9.315e-05,2]
[344516492,1733534643846,-1231.65,9.315e-05,2]
[344516493,1733534643886,-500.0,9.315e-05,2]
[344516494,1733534643919,-533.78,9.315e-05,2]
[344516495,1733534643952,-500.0,9.315e-05,2]
[344516496,1733534643984,-1008.44,9.315e-05,2]
[344516497,1733534644017,-1454.47,9.315e-05,2]
[344516498,1733534644049,-1258.35,9.315e-05,2]
[344516499,1733534644082,-15055.87,9.315e-05,2]
[344516500,1733534644115,-500.0,9.315e-05,2]
[344516501,1733534644147,-500.0,9.315e-05,2]
[344516502,1733534644181,-707.95,9.315e-05,2]
[344516503,1733534644215,-6860.44,9.315e-05,2]
[344516504,1733534644249,-479.68,9.315e-05,2]
[344516505,1733534644283,-1151.79,9.315e-05,2]
[344516506,1733534644316,-2462.88,9.315e-05,2]
[344516507,1733534644349,-1485.49,9.315e-05,2]
[344516508,1733534644388,-10327.5,9.315e-05,2]
[344516509,1733534644424,-6073.25,9.315e-05,2]
[344516510,1733534644461,-500.0,9.315e-05,2]
[344516511,1733534644498,-4445.85,9.315e-05,2]
[344516512,1733534644533,-500.0,9.315e-05,2]
[344516513,1733534644569,-878.28,9.315e-05,2]
[344516514,1733534644604,-791.73,9.315e-05,2]
[344516515,1733534644932,-2450.46,9.315e-05,2]
[344516516,1733534644966,-1026.86,9.315e-05,2]
[344516517,1733534645000,-500.0,9.315e-05,2]
[344516518,1733534645034,-1408.03,9.315e-05,2]
[344516519,1733534645067,-1992.9,9.315e-05,2]
[344516520,1733534645098,-1184.68,9.315e-05,2]
[344516521,1733534645135,-555.08,9.315e-05,2]
[344516522,1733534645170,-500.0,9.315e-05,2]
[344516523,1733534645204,-1524.13,9.315e-05,2]
[344516524,1733534645236,-676.95,9.315e-05,2]
[344516525,1733534645270,-2762.76,9.315e-05,2]
[344516526,1733534645305,-1555.56,9.315e-05,2]
[344516527,1733534645338,-2989.31,9.315e-05,2]
[344516528,1733534645371,-696.35,9.315e-05,2]
[344516529,1733534645408,-781.7,9.315e-05,2]
[344516530,1733534645442,-500.0,9.315e-05,2]
[344516531,1733534645476,-1512.78,9.315e-05,2]
[344516532,1733534645511,-500.0,9.315e-05,2]
[344516533,1733534645545,-4641.13,9.315e-05,2]
[344516534,1733534645579,-500.0,9.315e-05,2]
[344516535,1733534645614,-500.0,9.315e-05,2]
[344516536,1733534645649,-3892.95,9.315e-05,2]
[344516537,1733534645683,-500.0,9.315e-05,2]
[344516538,1733534645720,-500.0,9.315e-05,2]
[344516539,1733534645756,-568.38,9.315e-05,2]
[344516540,1733534645792,-500.0,9.315e-05,2]
[344516541,1733534645827,-10751.97,9.315e-05,2]
[344516542,1733534645864,-746.04,9.315e-05,2]
[344516543,1733534645899,-500.0,9.315e-05,2]
[344516544,1733534645933,-716.15,9.315e-05,2]
[344516545,1733534645965,-500.0,9.315e-05,2]
[344516546,1733534645998,-500.0,9.315e-05,2]
[344516547,1733534646032,-163.83996336,9.315e-05,2]
[344516548,1733534646069,-2290.7,9.315e-05,2]
[344516549,1733534646104,-500.0,9.315e-05,2]
[344516550,1733534646142,-500.0,9.315e-05,2]
[344516551,1733534646180,-836.8,9.315e-05,2]
[344516552,1733534646216,-6840.25,9.315e-05,2]
[344516553,1733534646253,-500.0,9.315e-05,2]
[344516554,1733534646290,-2523.76,9.315e-05,2]
[344516555,1733534646324,-2349.79,9.315e-05,2]
[344516556,1733534646364,-500.0,9.315e-05,2]
[344516557,1733534646399,-500.0,9.315e-05,2]
[344516558,1733534646433,-888.53,9.315e-05,2]
[344516559,1733534646466,-500.0,9.315e-05,2]
[344516560,1733534646503,-500.0,9.315e-05,2]
[344516561,1733534646540,-500.0,9.315e-05,2]
[344516562,1733534646576,-500.0,9.315e-05,2]
[344516563,1733534646622,-500.0,9.315e-05,2]
[344516564,1733534646659,-1022.46,9.315e-05,2]
[344516565,1733534646694,-2980.66,9.315e-05,2]
[344516566,1733534646732,-913.03,9.315e-05,2]
[344516567,1733534646769,-2894.23,9.315e-05,2]
[344516568,1733534646804,-500.0,9.315e-05,2]
[344516569,1733534646843,-1527.17,9.315e-05,2]
[344516570,1733534646884,-500.0,9.315e-05,2]
[344516571,1733534646927,-1713.17,9.315e-05,2]
[344516572,1733534646966,-4873.13,9.315e-05,2]
[344516573,1733534647004,-500.0,9.315e-05,2]
[344516574,1733534647039,-500.0,9.315e-05,2]
[344516575,1733534647077,-500.0,9.315e-05,2]
[344516576,1733534647116,-500.0,9.315e-05,2]
[344516577,1733534647153,-1524.69,9.315e-05,2]
[344516578,1733534647189,-500.0,9.315e-05,2]
[344516579,1733534647224,-500.0,9.315e-05,2]
[344516580,1733534647262,-4862.07,9.315e-05,2]
[344516581,1733534647298,-550.88,9.315e-05,2]
[344516582,1733534647333,-500.0,9.315e-05,2]
[344516583,1733534647369,-919.32,9.315e-05,2]
[344516584,1733534647407,-597.56,9.315e-05,2]
[344516585,1733534647445,-3401.85,9.315e-05,2]
[344516586,1733534647486,-1496.46,9.315e-05,2]
[344516587,1733534647525,-500.0,9.315e-05,2]
[344516588,1733534647567,-1248.35,9.315e-05,2]
[344516589,1733534647604,-500.0,9.315e-05,2]
[344516590,1733534647649,-500.0,9.315e-05,2]
[344516591,1733534647687,-1020.37,9.315e-05,2]
[344516592,1733534647725,-500.0,9.315e-05,2]
[344516593,1733534647763,-8245.82,9.315e-05,2]
[344516594,1733534647802,-896.87,9.315e-05,2]
[344516595,1733534647843,-3333.7,9.315e-05,2]
[344516596,1733534647886,-1590.36,9.315e-05,2]
[344516597,1733534647925,-1622.98,9.315e-05,2]
[344516598,1733534647963,-2526.79,9.315e-05,2]
[344516599,1733534648000,-1000.1,9.315e-05,2]
[344516600,1733534648038,-500.0,9.315e-05,2]
[344516601,1733534648076,-811.71,9.315e-05,2]
[344516602,1733534648116,-500.0,9.315e-05,2]
[344516603,1733534648153,-721.26,9.315e-05,2]
[344516604,1733534648193,-500.0,9.315e-05,2]
[344516605,1733534648230,-1938.93,9.315e-05,2]
[344516606,1733534648268,-1317.63,9.315e-05,2]
[344516607,1733534648305,-2502.24,9.315e-05,2]
[344516608,1733534648340,-500.0,9.315e-05,2]
[344516609,1733534648374,-500.0,9.315e-05,2]
[344516610,1733534648410,-2291.48,9.315e-05,2]
[344516611,1733534648444,-1122.52,9.315e-05,2]
[344516612,1733534648482,-563.88,9.315e-05,2]
[344516613,1733534648519,-674.26,9.315e-05,2]
[344516614,1733534648555,-18015.04,9.315e-05,2]
[344516615,1733534648591,-2253.9,9.315e-05,2]
[344516616,1733534648630,-500.0,9.315e-05,2]
[344516617,1733534648665,-500.0,9.315e-05,2]
[344516618,1733534648700,-814.7,9.315e-05,2]
[344516619,1733534648735,-709.4,9.315e-05,2]
[344516620,1733534648772,-3188.34,9.315e-05,2]
[344516621,1733534648807,-5849.38,9.315e-05,2]
[344516622,1733534648842,-921.65,9.315e-05,2]
[344516623,1733534648883,-4051.34,9.315e-05,2]
[344516624,1733534648917,-1464.61,9.315e-05,2]
[344516625,1733534648952,-561.02265108,9.315e-05,2]
[344516626,1733534648987,-735.32,9.315e-05,2]
[344516627,1733534649022,-2054.61,9.315e-05,2]
[344516628,1733534649058,-500.0,9.315e-05,2]
[344516629,1733534649092,-6076.91,9.315e-05,2]
[344516630,1733534649130,-3069.91,9.315e-05,2]
[344516631,1733534649190,-955.64,9.315e-05,2]
[344516632,1733534649251,-500.0,9.315e-05,2]
[344516633,1733534649294,-500.0,9.315e-05,2]
[344516634,1733534649328,-500.0,9.315e-05,2]
[344516635,1733534649364,-500.0,9.315e-05,2]
[344516636,1733534649397,-1426.36,9.315e-05,2]
[344516637,1733534649436,-500.0,9.315e-05,2]
[344516638,1733534649469,-4936.71,9.315e-05,2]
[344516639,1733534649505,-1856.49,9.315e-05,2]
[344516640,1733534649540,-1499.61,9.315e-05,2]
[344516641,1733534649575,-1817.28,9.315e-05,2]
[344516642,1733534649613,-2235.64,9.315e-05,2]
[344516643,1733534649648,-513.77,9.315e-05,2]
[344516644,1733534649683,-1248.89,9.315e-05,2]
[344516645,1733534649717,-500.0,9.315e-05,2]
[344516646,1733534649752,-2046.61383234,9.315e-05,2]
[344516647,1733534649786,-5257.03,9.315e-05,2]
[344516648,1733534649820,-500.0,9.315e-05,2]
[344516649,1733534649861,-1983.53,9.315e-05,2]
[344516650,1733534649919,-2485.82,9.315e-05,2]
[344516651,1733534649975,-500.0,9.315e-05,2]
[344516652,1733534650014,-500.0,9.315e-05,2]
[344516653,1733534650048,-7158.83,9.315e-05,2]
[344516654,1733534650084,-500.0,9.315e-05,2]
[344516655,1733534650119,-1665.73,9.315e-05,2]
[344516656,1733534650155,-1823.77,9.315e-05,2]
[344516657,1733534650189,-1783.64,9.315e-05,2]
[344516658,1733534650224,-500.0,9.315e-05,2]
[344516659,1733534650262,-500.0,9.315e-05,2]
[344516660,1733534650298,-500.0,9.315e-05,2]
[344516661,1733534650337,-500.0,9.315e-05,2]
[344516662,1733534650379,-665.68,9.315e-05,2]
[344516663,1733534650416,-2537.64,9.315e-05,2]
[344516664,1733534650457,-1392.61,9.315e-05,2]
[344516665,1733534650732,-500.0,9.315e-05,2]
[344516666,1733534650768,-731.26,9.315e-05,2]
[344516667,1733534650806,-1464.06,9.315e-05,2]
[344516668,1733534650841,-1525.33,9.315e-05,2]
[344516669,1733534650881,-500.0,9.315e-05,2]
[344516670,1733534650917,-500.0,9.315e-05,2]
[344516671,1733534650954,-500.0,9.315e-05,2]
[344516672,1733534650991,-610.96,9.315e-05,2]
[344516673,1733534651028,-1037.86,9.315e-05,2]
[344516674,1733534651065,-664.08,9.315e-05,2]
[344516675,1733534651102,-5174.44,9.315e-05,2]
[344516676,1733534651142,-500.0,9.315e-05,2]
[344516677,1733534651180,-500.0,9.315e-05,2]
[344516678,1733534651216,-2410.74,9.315e-05,2]
[344516679,1733534651252,-500.0,9.315e-05,2]
[344516680,1733534651286,-1736.23,9.315e-05,2]
[344516681,1733534651320,-500.0,9.315e-05,2]
[344516682,1733534651354,-500.0,9.315e-05,2]
[344516683,1733534651390,-561.02,9.315e-05,2]
[344516684,1733534651424,-500.0,9.315e-05,2]
[344516685,1733534651457,-500.0,9.315e-05,2]
[344516686,1733534651494,-500.0,9.315e-05,2]
[344516687,1733534651529,-1155.21,9.315e-05,2]
[344516688,1733534651567,-500.0,9.315e-05,2]
[344516689,1733534651602,-462.65150737,9.315e-05,2]
[344516690,1733534651640,-1921.14,9.315e-05,2]
[344516691,1733534651678,-1153.75,9.315e-05,2]
[344516692,1733534651714,-500.0,9.315e-05,2]
[344516693,1733534651749,-3625.92,9.315e-05,2]
[344516694,1733534651783,-500.0,9.315e-05,2]
[344516695,1733534651819,-500.0,9.315e-05,2]
[344516696,1733534651854,-500.0,9.315e-05,2]
[344516697,1733534651892,-500.0,9.315e-05,2]
[344516698,1733534651928,-500.0,9.315e-05,2]
[344516699,1733534651963,-1554.04,9.315e-05,2]
[344516700,1733534651999,-582.93,9.315e-05,2]
[344516701,1733534652033,-500.0,9.315e-05,2]
[344516702,1733534652068,-312.76,9.315e-05,2]
[344516703,1733534652103,-748.31,9.315e-05,2]
[344516704,1733534652141,-500.0,9.315e-05,2]
[344516705,1733534652177,-2553.78,9.315e-05,2]
[344516706,1733534652214,-500.0,9.315e-05,2]
[344516707,1733534652253,-1580.76,9.315e-05,2]
[344516708,1733534652291,-500.0,9.315e-05,2]
[344516709,1733534652329,-1671.64,9.315e-05,2]
[344516710,1733534652366,-500.0,9.315e-05,2]
[344516711,1733534652400,-500.0,9.315e-05,2]
[344516712,1733534652433,-500.0,9.315e-05,2]
[344516713,1733534652468,-968.24,9.315e-05,2]
[344516714,1733534652503,-500.0,9.315e-05,2]
[344516715,1733534652539,-2197.28,9.315e-05,2]
[344516716,1733534652574,-500.0,9.315e-05,2]
[344516717,1733534652609,-2425.6,9.315e-05,2]
[344516718,1733534652645,-1294.74,9.315e-05,2]
[344516719,1733534652682,-1171.67,9.315e-05,2]
[344516720,1733534652719,-9550.42,9.315e-05,2]
[344516721,1733534652755,-750.83,9.315e-05,2]
[344516722,1733534652791,-500.0,9.315e-05,2]
[344516723,1733534652841,-528.44,9.315e-05,2]
[344516724,1733534652889,-620.16,9.315e-05,2]
[344516725,1733534652928,-1340.29,9.315e-05,2]
[344516726,1733534652968,-500.0,9.315e-05,2]
[344516727,1733534653008,-834.71,9.315e-05,2]
[344516728,1733534653046,-259.77122497,9.315e-05,2]
[344516729,1733534653083,-953.56,9.315e-05,2]
[344516730,1733534653122,-6772.60433295,9.4e-05,2]
[344516731,1733534653163,-150.0,9.451e-05,5]
[344516732,1733534653200,-239.66743376,9.451e-05,5]
[344516733,1733534653239,-807.07,9.498e-05,2]
[344516734,1733534653284,-422.72773579,9.499e-05,2]
[344516735,1733534653328,-422.72773576,9.499e-05,2]
[344516736,1733534653371,-422.72773576,9.499e-05,2]
[344516737,1733534653413,-422.72773576,9.499e-05,2]
[344516738,1733534653455,-422.72773576,9.499e-05,2]
[344516739,1733534653495,-422.72773576,9.499e-05,2]
[344516740,1733534653534,-422.72773576,9.499e-05,2]
[344516741,1733534653573,-422.72773576,9.499e-05,2]
[344516742,1733534653617,-422.72773576,9.499e-05,2]
[344516743,1733534653657,-3024.5,9.5e-05,2]
[344516744,1733534653695,-2500.0,9.5e-05,2]
[344516745,1733534653738,-1000.0,9.5e-05,2]
[344516746,1733534653776,-2557.11200561,9.5e-05,2]
[344516747,1733534653814,-2500.0,9.548e-05,3]
[344516748,1733534653851,-426.43795776,9.565e-05,2]
[344516749,1733534653891,-500.0,9.587e-05,2]
[344516750,1733534653928,-500.0,9.587e-05,2]
[344516751,1733534653963,-500.0,9.587e-05,2]
[344516752,1733534653999,-500.0,9.587e-05,2]
[344516753,1733534654034,-807.07,9.587e-05,2]
[344516754,1733534654071,-807.07,9.587e-05,2]
[344516755,1733534654111,-2330.51260827,9.588e-05,2]
[344516756,1733534654149,-1000.0,9.588e-05,2]
[344516757,1733534654184,-1000.0,9.588e-05,3]
[344516758,1733534654221,-431857.4667305,9.588e-05,2]
[344516759,1733534654260,-2000.0,9.588e-05,2]
[344516760,1733534654305,-838.67,9.588e-05,2]
[344516761,1733534654347,-500.0,9.588e-05,2]
[344516762,1733534654401,-500.0,9.588e-05,2]
[344516763,1733534654446,-500.0,9.588e-05,2]
[344516764,1733534654495,-500.0,9.588e-05,2]
[344516765,1733534654539,-500.0,9.588e-05,2]
[344516766,1733534654584,-500.0,9.588e-05,2]
[344516767,1733534654620,-500.0,9.588e-05,2]
[344516768,1733534654656,-422.76991669,9.588e-05,2]
[344516769,1733534654695,-500.0,9.588e-05,2]
[344516770,1733534654733,-500.0,9.588e-05,2]
[344516771,1733534654770,-500.0,9.588e-05,2]
[344516772,1733534654808,-216.96710726,9.588e-05,2]
[344516773,1733534654847,-807.07,9.588e-05,2]
[344516774,1733534654887,-807.07,9.588e-05,2]
[344516775,1733534654924,-807.07,9.588e-05,2]
[344516776,1733534654962,-807.07,9.588e-05,2]
[344516777,1733534655002,-807.07,9.588e-05,2]
[344516778,1733534655039,-807.07,9.588e-05,2]
[344516779,1733534655075,-807.07,9.588e-05,2]
[344516780,1733534655114,-807.07,9.588e-05,2]
[344516781,1733534655151,-807.07,9.588e-05,2]
[344516782,1733534655187,-807.07,9.588e-05,2]
[344516783,1733534655228,-807.07,9.588e-05,2]
[344516784,1733534655266,-807.07,9.588e-05,2]
[344516785,1733534655301,-807.07,9.588e-05,2]
[344516786,1733534655340,-807.07,9.588e-05,2]
[344516787,1733534655377,-807.11925458,9.588e-05,2]
[344516788,1733534655415,-500.0,9.589e-05,2]
[344516789,1733534655451,-500.0,9.589e-05,2]
[344516790,1733534655494,-500.0,9.589e-05,2]
[344516791,1733534655534,-235.85105487,9.589e-05,2]
[344516792,1733534655570,-500.0,9.589e-05,2]
[344516793,1733534655607,-500.0,9.589e-05,2]
[344516794,1733534655647,-500.0,9.589e-05,2]
[344516795,1733534655682,-197.80190988,9.589e-05,2]
[344516796,1733534655719,-500.0,9.589e-05,2]
[344516797,1733534655756,-500.0,9.589e-05,2]
[344516798,1733534655792,-500.0,9.589e-05,2]
[344516799,1733534655830,-500.0,9.589e-05,2]
[344516800,1733534655870,-500.0,9.589e-05,2]
[344516801,1733534655906,-550.0529262,9.589e-05,2]
[344516802,1733534655943,-500.0,9.589e-05,2]
[344516803,1733534655982,-500.0,9.589e-05,2]
[344516804,1733534656017,-500.0,9.589e-05,2]
[344516805,1733534656052,-500.0,9.589e-05,2]
[344516806,1733534656088,-500.0,9.589e-05,2]
[344516807,1733534656124,-500.0,9.589e-05,2]
[344516808,1733534656160,-500.0,9.589e-05,2]
[344516809,1733534656197,-500.0,9.589e-05,2]
[344516810,1733534656234,-500.0,9.589e-05,2]
[344516811,1733534656273,-500.0,9.589e-05,2]
[344516812,1733534656310,-500.0,9.589e-05,2]
[344516813,1733534656347,-500.0,9.589e-05,2]
[344516814,1733534656714,-500.0,9.589e-05,2]
[344516815,1733534656749,-500.0,9.589e-05,2]
[344516816,1733534656788,-529.66756593,9.589e-05,2]
[344516817,1733534656823,-500.0,9.589e-05,2]
[344516818,1733534656857,-500.0,9.589e-05,2]
[344516819,1733534656897,-500.0,9.589e-05,2]
[344516820,1733534656933,-500.0,9.589e-05,2]
[344516821,1733534656969,-500.0,9.589e-05,2]
[344516822,1733534657006,-356.97304512,9.589e-05,2]
[344516823,1733534657042,-500.0,9.589e-05,2]
[344516824,1733534657080,-500.0,9.589e-05,2]
[344516825,1733534657119,-500.0,9.589e-05,2]
[344516826,1733534657159,-500.0,9.589e-05,2]
[344516827,1733534657201,-500.0,9.589e-05,2]
[344516828,1733534657240,-500.0,9.589e-05,2]
[344516829,1733534657278,-500.0,9.589e-05,2]
[344516830,1733534657315,-436.61959122,9.589e-05,2]
[344516831,1733534657351,-500.0,9.589e-05,2]
[344516832,1733534657390,-500.0,9.589e-05,2]
[344516833,1733534657426,-500.0,9.589e-05,2]
[344516834,1733534657463,-500.0,9.589e-05,2]
[344516835,1733534657497,-500.0,9.589e-05,2]
[344516836,1733534657537,-500.0,9.589e-05,2]
[344516837,1733534657577,-500.0,9.589e-05,2]
[344516838,1733534657618,-500.0,9.589e-05,2]
[344516839,1733534657658,-500.0,9.589e-05,2]
[344516840,1733534657697,-500.0,9.589e-05,2]
[344516841,1733534657732,-500.0,9.589e-05,2]
[344516842,1733534657767,-500.0,9.589e-05,2]
[344516843,1733534657802,-500.0,9.589e-05,2]
[344516844,1733534657838,-500.0,9.589e-05,2]
[344516845,1733534657874,-500.0,9.589e-05,2]
[344516846,1733534657911,-267.38980659,9.589e-05,2]
[344516847,1733534657948,-500.0,9.589e-05,2]
[344516848,1733534657983,-500.0,9.589e-05,2]
[344516849,1733534658017,-500.0,9.589e-05,2]
[344516850,1733534658052,-500.0,9.589e-05,2]
[344516851,1733534658087,-500.0,9.589e-05,2]
[344516852,1733534658125,-500.0,9.589e-05,2]
[344516853,1733534658162,-500.0,9.589e-05,2]
[344516854,1733534658199,-500.0,9.589e-05,2]
[344516855,1733534658238,-500.30368337,9.589e-05,2]
[344516856,1733534658286,-500.0,9.589e-05,2]
[344516857,1733534658332,-500.0,9.589e-05,2]
[344516858,1733534658374,-500.0,9.589e-05,2]
[344516859,1733534658414,-500.0,9.589e-05,2]
[344516860,1733534658451,-500.0,9.589e-05,2]
[344516861,1733534658492,-549.29978864,9.589e-05,2]
[344516862,1733534658533,-500.0,9.589e-05,2]
[344516863,1733534658572,-500.0,9.589e-05,2]
[344516864,1733534658609,-500.0,9.589e-05,2]
[344516865,1733534658648,-500.0,9.589e-05,2]
[344516866,1733534658686,-500.0,9.589e-05,2]
[344516867,1733534658723,-500.0,9.589e-05,2]
[344516868,1733534658761,-500.0,9.589e-05,2]
[344516869,1733534658796,-500.0,9.589e-05,2]
[344516870,1733534658833,-500.0,9.589e-05,2]
[344516871,1733534658871,-500.0,9.589e-05,2]
[344516872,1733534658907,-500.0,9.589e-05,2]
[344516873,1733534658946,-500.0,9.589e-05,2]
[344516874,1733534658987,-500.0,9.589e-05,2]
[344516875,1733534659022,-500.0,9.589e-05,2]
[344516876,1733534659057,-414.39326449,9.589e-05,2]
[344516877,1733534659092,-500.0,9.589e-05,2]
[344516878,1733534659128,-500.0,9.589e-05,2]
[344516879,1733534659164,-500.0,9.589e-05,2]
[344516880,1733534659201,-500.0,9.589e-05,2]
[344516881,1733534659237,-500.0,9.589e-05,2]
[344516882,1733534659274,-500.0,9.589e-05,2]
[344516883,1733534659311,-500.0,9.589e-05,2]
[344516884,1733534659348,-500.0,9.589e-05,2]
[344516885,1733534659388,-500.0,9.589e-05,2]
[344516886,1733534659423,-500.0,9.589e-05,2]
[344516887,1733534659459,-500.0,9.589e-05,2]
[344516888,1733534659498,-500.0,9.589e-05,2]
[344516889,1733534659534,-500.0,9.589e-05,2]
[344516890,1733534659568,-500.0,9.589e-05,2]
[344516891,1733534659603,-500.0,9.589e-05,2]
[344516892,1733534659641,-500.0,9.589e-05,2]
[344516893,1733534659678,-500.0,9.589e-05,2]
[344516894,1733534659715,-500.0,9.589e-05,2]
[344516895,1733534659748,-500.0,9.589e-05,2]
[344516896,1733534659784,-500.0,9.589e-05,2]
[344516897,1733534659820,-500.0,9.589e-05,2]
[344516898,1733534659856,-500.0,9.589e-05,2]
[344516899,1733534659898,-300.33838055,9.589e-05,2]
[344516900,1733534659934,-500.0,9.589e-05,2]
[344516901,1733534659968,-500.0,9.589e-05,2]
[344516902,1733534660002,-500.0,9.589e-05,2]
[344516903,1733534660036,-500.0,9.589e-05,2]
[344516904,1733534660070,-500.0,9.589e-05,2]
[344516905,1733534660103,-500.0,9.589e-05,2]
[344516906,1733534660140,-500.0,9.589e-05,2]
[344516907,1733534660175,-500.0,9.589e-05,2]
[344516908,1733534660211,-500.0,9.589e-05,2]
[344516909,1733534660247,-500.0,9.589e-05,2]
[344516910,1733534660285,-500.0,9.589e-05,2]
[344516911,1733534660319,-500.0,9.589e-05,2]
[344516912,1733534660351,-500.0,9.589e-05,2]
[344516913,1733534660386,-409.58302619,9.589e-05,2]
[344516914,1733534660421,-500.0,9.589e-05,2]
[344516915,1733534660457,-500.0,9.589e-05,2]
[344516916,1733534660495,-500.0,9.589e-05,2]
[344516917,1733534660532,-500.0,9.589e-05,2]
[344516918,1733534660569,-500.0,9.589e-05,2]
[344516919,1733534660605,-500.0,9.589e-05,2]
[344516920,1733534660642,-500.0,9.589e-05,2]
[344516921,1733534660676,-500.0,9.589e-05,2]
[344516922,1733534660710,-500.0,9.589e-05,2]
[344516923,1733534660750,-500.0,9.589e-05,2]
[344516924,1733534660785,-500.0,9.589e-05,2]
[344516925,1733534660818,-500.0,9.589e-05,2]
[344516926,1733534660853,-500.0,9.589e-05,2]
[344516927,1733534660888,-500.0,9.589e-05,2]
[344516928,1733534660921,-500.0,9.589e-05,2]
[344516929,1733534660954,-500.0,9.589e-05,2]
[344516930,1733534660988,-500.0,9.589e-05,2]
[344516931,1733534661023,-500.0,9.589e-05,2]
[344516932,1733534661056,-500.0,9.589e-05,2]
[344516933,1733534661089,-500.0,9.589e-05,2]
[344516934,1733534661123,-499.89433093,9.589e-05,2]
[344516935,1733534661157,-500.0,9.589e-05,2]
[344516936,1733534661190,-500.0,9.589e-05,2]
[344516937,1733534661227,-500.0,9.589e-05,2]
[344516938,1733534661261,-500.0,9.589e-05,2]
[344516939,1733534661296,-500.0,9.589e-05,2]
[344516940,1733534661330,-500.0,9.589e-05,2]
[344516941,1733534661367,-500.0,9.589e-05,2]
[344516942,1733534661401,-500.0,9.589e-05,2]
[344516943,1733534661435,-500.0,9.589e-05,2]
[344516944,1733534661468,-500.0,9.589e-05,2]
[344516945,1733534661503,-500.0,9.589e-05,2]
[344516946,1733534661536,-500.0,9.589e-05,2]
[344516947,1733534661571,-500.0,9.589e-05,2]
[344516948,1733534661604,-500.0,9.589e-05,2]
[344516949,1733534661641,-500.0,9.589e-05,2]
[344516950,1733534661676,-500.0,9.589e-05,2]
[344516951,1733534661710,-500.0,9.589e-05,2]
[344516952,1733534661744,-176.8767027,9.589e-05,2]
[344516953,1733534661777,-500.0,9.589e-05,2]
[344516954,1733534661809,-500.0,9.589e-05,2]
[344516955,1733534661843,-500.0,9.589e-05,2]
[344516956,1733534661876,-500.0,9.589e-05,2]
[344516957,1733534661911,-500.0,9.589e-05,2]
[344516958,1733534661945,-493.15048135,9.589e-05,2]
[344516959,1733534661980,-500.0,9.589e-05,2]
[344516960,1733534662014,-500.0,9.589e-05,2]
[344516961,1733534662048,-500.0,9.589e-05,2]
[344516962,1733534662083,-500.0,9.589e-05,2]
[344516963,1733534662118,-500.0,9.589e-05,2]
[344516964,1733534662151,-500.0,9.589e-05,2]
[344516965,1733534662424,-500.0,9.589e-05,2]
[344516966,1733534662459,-500.0,9.589e-05,2]
[344516967,1733534662495,-500.0,9.589e-05,2]
[344516968,1733534662529,-500.0,9.589e-05,2]
[344516969,1733534662566,-196.89026429,9.589e-05,2]
[344516970,1733534662606,-500.0,9.589e-05,2]
[344516971,1733534662642,-500.0,9.589e-05,2]